{"text_format":"1","workbook":"xlsx","n_sheets":2,"sheets":["Інструкції та настройки","12 вер"],"not_rendered":{"charts":0,"images":0,"macros":1,"external_links":0,"defined_names":13,"comments":0,"pivot_tables":0},"unopened":[],"bounds":{"document_bytes":16777216,"sheet_cells":100000,"rows_first":2000,"rows_last":500,"rows_between":2000,"halvings":0,"cell_chars":16384,"cell_head_chars":4096},"cells_cut":0,"cells_raw":0,"read":"whole","date_system":"1900"}

{"sheet":"Інструкції та настройки","index":0,"n_rows":23,"n_cols":9,"rows_kept":23,"cut":false,"hidden":false,"merged":[[11,7,11,8],[4,7,4,8],[6,7,6,8],[8,7,8,8],[10,7,10,8],[3,2,3,4],[5,2,5,4],[7,2,7,4],[9,2,9,4],[3,7,3,8],[5,7,5,8],[7,7,7,8],[9,7,9,8]]}
[]
[null,"Інструкції та настройки"]
[]
[null,1,"Нижче, у таблиці «Курси» введіть назви курсів, які будуть відстежуватися у цьому розкладі.",null,null,null,5,"Введіть дату початку свого розкладу у клітинку A5."]
[]
[null,2,"У таблиці «Діяльність» (також унизу) змініть зразок виду діяльності на ту, яка потрібна вам. ",null,null,null,6,"У рядку 4 скористайтеся розкривним списком, щоб додати до розкладу курси. "]
[]
[null,3,"У клітинці I14 зазначте кількість рядків для щоденних домашніх завдань.",null,null,null,7,"Під кожним курсом введіть завдання у стовпець Завдання."]
[]
[null,4,"На аркуші розкладу (наприклад, «12 вер») виконайте кроки 5 – 9.",null,null,null,8,"Обчислити, скільки усього годин знадобиться на виконання кожного завдання, можна у стовпці годин, який позначено піктограмою із зображенням годинника."]
[]
[null,null,null,null,null,null,9,"Коли завдання буде виконано, двічі клацніть стовпець виконання, який позначено прапорцем, поруч із завданням."]
[]
[null,null,"Курси",null,"Діяльність",null,null,"Кількість рядків на кожний день:",5]
[null,null,"Математика 101",null,"Обговорення"]
[null,null,"Англійська мова 105",null,"Лабораторна робота"]
[null,null,"Французька мова 103",null,"Лекція"]
[null,null,"Природничі науки 101",null,"Тестування"]
[null,null,"Історія 101",null,"Читання"]
[null,null,null,null,"Відбиття"]
[null,null,null,null,"Наукова робота"]
[null,null,null,null,"Перевірка завдань"]
[null,null,null,null,"Навчання"]

{"sheet":"12 вер","index":1,"n_rows":103,"n_cols":24,"rows_kept":103,"cut":false,"hidden":false,"merged":[]}
[]
[null,"Домашні завдання"]
[]
[null,"Введіть дату початку","Усього"," Курс:",null,"Математика 101"," Курс:",null,"Англійська мова 105"," Курс:",null,"Французька мова 103"," Курс:",null,"Природничі науки 101"," Курс:",null,null," Курс:",null,null," Курс:"]
[null,"2011-09-12",null,null,null,"ЗАВДАННЯ",null,null,"ЗАВДАННЯ",null,null,"ЗАВДАННЯ",null,null,"ЗАВДАННЯ",null,null,"ЗАВДАННЯ",null,null,"ЗАВДАННЯ",null,null,"ЗАВДАННЯ"]
[]
[null,{"$f":"Деньплану","v":"2011-09-12"},{"$f":"Загальнакількістьгодиннадень","v":6.5},1,1.5,"Читання",1,2,"Навчання",null,1,"Читання",1,1,"Тестування"]
[null,{"$f":"Деньплану","v":""},{"$f":"Загальнакількістьгодиннадень","v":""},1,1,"Перевірка завдань"]
[null,{"$f":"Деньплану","v":""},{"$f":"Загальнакількістьгодиннадень","v":""}]
[null,{"$f":"Деньплану","v":""},{"$f":"Загальнакількістьгодиннадень","v":""}]
[null,{"$f":"Деньплану","v":""},{"$f":"Загальнакількістьгодиннадень","v":""}]
[null,{"$f":"Деньплану","v":"2011-09-13"},{"$f":"Загальнакількістьгодиннадень","v":0}]
[null,{"$f":"Деньплану","v":""},{"$f":"Загальнакількістьгодиннадень","v":""}]
[null,{"$f":"Деньплану","v":""},{"$f":"Загальнакількістьгодиннадень","v":""}]
[null,{"$f":"Деньплану","v":""},{"$f":"Загальнакількістьгодиннадень","v":""}]
[null,{"$f":"Деньплану","v":""},{"$f":"Загальнакількістьгодиннадень","v":""}]
[null,{"$f":"Деньплану","v":"2011-09-14"},{"$f":"Загальнакількістьгодиннадень","v":0}]
[null,{"$f":"Деньплану","v":""},{"$f":"Загальнакількістьгодиннадень","v":""}]
[null,{"$f":"Деньплану","v":""},{"$f":"Загальнакількістьгодиннадень","v":""}]
[null,{"$f":"Деньплану","v":""},{"$f":"Загальнакількістьгодиннадень","v":""}]
[null,{"$f":"Деньплану","v":""},{"$f":"Загальнакількістьгодиннадень","v":""}]
[null,{"$f":"Деньплану","v":"2011-09-15"},{"$f":"Загальнакількістьгодиннадень","v":0}]
[null,{"$f":"Деньплану","v":""},{"$f":"Загальнакількістьгодиннадень","v":""}]
[null,{"$f":"Деньплану","v":""},{"$f":"Загальнакількістьгодиннадень","v":""}]
[null,{"$f":"Деньплану","v":""},{"$f":"Загальнакількістьгодиннадень","v":""}]
[null,{"$f":"Деньплану","v":""},{"$f":"Загальнакількістьгодиннадень","v":""}]
[null,{"$f":"Деньплану","v":"2011-09-16"},{"$f":"Загальнакількістьгодиннадень","v":0}]
[null,{"$f":"Деньплану","v":""},{"$f":"Загальнакількістьгодиннадень","v":""}]
[null,{"$f":"Деньплану","v":""},{"$f":"Загальнакількістьгодиннадень","v":""}]
[null,{"$f":"Деньплану","v":""},{"$f":"Загальнакількістьгодиннадень","v":""}]
[null,{"$f":"Деньплану","v":""},{"$f":"Загальнакількістьгодиннадень","v":""}]
[null,{"$f":"Деньплану","v":"2011-09-17"},{"$f":"Загальнакількістьгодиннадень","v":0}]
[null,{"$f":"Деньплану","v":""},{"$f":"Загальнакількістьгодиннадень","v":""}]
[null,{"$f":"Деньплану","v":""},{"$f":"Загальнакількістьгодиннадень","v":""}]
[null,{"$f":"Деньплану","v":""},{"$f":"Загальнакількістьгодиннадень","v":""}]
[null,{"$f":"Деньплану","v":""},{"$f":"Загальнакількістьгодиннадень","v":""}]
[null,{"$f":"Деньплану","v":"2011-09-18"},{"$f":"Загальнакількістьгодиннадень","v":0}]
[null,{"$f":"Деньплану","v":""},{"$f":"Загальнакількістьгодиннадень","v":""}]
[null,{"$f":"Деньплану","v":""},{"$f":"Загальнакількістьгодиннадень","v":""}]
[null,{"$f":"Деньплану","v":""},{"$f":"Загальнакількістьгодиннадень","v":""}]
[null,{"$f":"Деньплану","v":""},{"$f":"Загальнакількістьгодиннадень","v":""}]
[null,{"$f":"Деньплану","v":""},{"$f":"Загальнакількістьгодиннадень","v":""}]
[null,{"$f":"Деньплану","v":""},{"$f":"Загальнакількістьгодиннадень","v":""}]
[null,{"$f":"Деньплану","v":""},{"$f":"Загальнакількістьгодиннадень","v":""}]
[null,{"$f":"Деньплану","v":""},{"$f":"Загальнакількістьгодиннадень","v":""}]
[null,{"$f":"Деньплану","v":""},{"$f":"Загальнакількістьгодиннадень","v":""}]
[null,{"$f":"Деньплану","v":""},{"$f":"Загальнакількістьгодиннадень","v":""}]
[null,{"$f":"Деньплану","v":""},{"$f":"Загальнакількістьгодиннадень","v":""}]
[null,{"$f":"Деньплану","v":""},{"$f":"Загальнакількістьгодиннадень","v":""}]
[null,{"$f":"Деньплану","v":""},{"$f":"Загальнакількістьгодиннадень","v":""}]
[null,{"$f":"Деньплану","v":""},{"$f":"Загальнакількістьгодиннадень","v":""}]
[null,{"$f":"Деньплану","v":""},{"$f":"Загальнакількістьгодиннадень","v":""}]
[null,{"$f":"Деньплану","v":""},{"$f":"Загальнакількістьгодиннадень","v":""}]
[null,{"$f":"Деньплану","v":""},{"$f":"Загальнакількістьгодиннадень","v":""}]
[null,{"$f":"Деньплану","v":""},{"$f":"Загальнакількістьгодиннадень","v":""}]
[null,{"$f":"Деньплану","v":""},{"$f":"Загальнакількістьгодиннадень","v":""}]
[null,{"$f":"Деньплану","v":""},{"$f":"Загальнакількістьгодиннадень","v":""}]
[null,{"$f":"Деньплану","v":""},{"$f":"Загальнакількістьгодиннадень","v":""}]
[null,{"$f":"Деньплану","v":""},{"$f":"Загальнакількістьгодиннадень","v":""}]
[null,{"$f":"Деньплану","v":""},{"$f":"Загальнакількістьгодиннадень","v":""}]
[null,{"$f":"Деньплану","v":""},{"$f":"Загальнакількістьгодиннадень","v":""}]
[null,{"$f":"Деньплану","v":""},{"$f":"Загальнакількістьгодиннадень","v":""}]
[null,{"$f":"Деньплану","v":""},{"$f":"Загальнакількістьгодиннадень","v":""}]
[null,{"$f":"Деньплану","v":""},{"$f":"Загальнакількістьгодиннадень","v":""}]
[null,{"$f":"Деньплану","v":""},{"$f":"Загальнакількістьгодиннадень","v":""}]
[null,{"$f":"Деньплану","v":""},{"$f":"Загальнакількістьгодиннадень","v":""}]
[null,{"$f":"Деньплану","v":""},{"$f":"Загальнакількістьгодиннадень","v":""}]
[null,{"$f":"Деньплану","v":""},{"$f":"Загальнакількістьгодиннадень","v":""}]
[null,{"$f":"Деньплану","v":""},{"$f":"Загальнакількістьгодиннадень","v":""}]
[null,{"$f":"Деньплану","v":""},{"$f":"Загальнакількістьгодиннадень","v":""}]
[null,{"$f":"Деньплану","v":""},{"$f":"Загальнакількістьгодиннадень","v":""}]
[null,{"$f":"Деньплану","v":""},{"$f":"Загальнакількістьгодиннадень","v":""}]
[null,{"$f":"Деньплану","v":""},{"$f":"Загальнакількістьгодиннадень","v":""}]
[null,{"$f":"Деньплану","v":""},{"$f":"Загальнакількістьгодиннадень","v":""}]
[null,{"$f":"Деньплану","v":""},{"$f":"Загальнакількістьгодиннадень","v":""}]
[null,{"$f":"Деньплану","v":""},{"$f":"Загальнакількістьгодиннадень","v":""}]
[null,{"$f":"Деньплану","v":""},{"$f":"Загальнакількістьгодиннадень","v":""}]
[null,{"$f":"Деньплану","v":""},{"$f":"Загальнакількістьгодиннадень","v":""}]
[null,{"$f":"Деньплану","v":""},{"$f":"Загальнакількістьгодиннадень","v":""}]
[null,{"$f":"Деньплану","v":""},{"$f":"Загальнакількістьгодиннадень","v":""}]
[null,{"$f":"Деньплану","v":""},{"$f":"Загальнакількістьгодиннадень","v":""}]
[null,{"$f":"Деньплану","v":""},{"$f":"Загальнакількістьгодиннадень","v":""}]
[null,{"$f":"Деньплану","v":""},{"$f":"Загальнакількістьгодиннадень","v":""}]
[null,{"$f":"Деньплану","v":""},{"$f":"Загальнакількістьгодиннадень","v":""}]
[null,{"$f":"Деньплану","v":""},{"$f":"Загальнакількістьгодиннадень","v":""}]
[null,{"$f":"Деньплану","v":""},{"$f":"Загальнакількістьгодиннадень","v":""}]
[null,{"$f":"Деньплану","v":""},{"$f":"Загальнакількістьгодиннадень","v":""}]
[null,{"$f":"Деньплану","v":""},{"$f":"Загальнакількістьгодиннадень","v":""}]
[null,{"$f":"Деньплану","v":""},{"$f":"Загальнакількістьгодиннадень","v":""}]
[null,{"$f":"Деньплану","v":""},{"$f":"Загальнакількістьгодиннадень","v":""}]
[null,{"$f":"Деньплану","v":""},{"$f":"Загальнакількістьгодиннадень","v":""}]
[null,{"$f":"Деньплану","v":""},{"$f":"Загальнакількістьгодиннадень","v":""}]
[null,{"$f":"Деньплану","v":""},{"$f":"Загальнакількістьгодиннадень","v":""}]
[null,{"$f":"Деньплану","v":""},{"$f":"Загальнакількістьгодиннадень","v":""}]
[null,{"$f":"Деньплану","v":""},{"$f":"Загальнакількістьгодиннадень","v":""}]
[null,{"$f":"Деньплану","v":""},{"$f":"Загальнакількістьгодиннадень","v":""}]
[null,{"$f":"Деньплану","v":""},{"$f":"Загальнакількістьгодиннадень","v":""}]
[null,{"$f":"Деньплану","v":""},{"$f":"Загальнакількістьгодиннадень","v":""}]
[null,{"$f":"Деньплану","v":""},{"$f":"Загальнакількістьгодиннадень","v":""}]
[null,{"$f":"Деньплану","v":""},{"$f":"Загальнакількістьгодиннадень","v":""}]
[null,{"$f":"Деньплану","v":""},{"$f":"Загальнакількістьгодиннадень","v":""}]
[null,{"$f":"Деньплану","v":""},{"$f":"Загальнакількістьгодиннадень","v":""}]
[null,{"$f":"Деньплану","v":""},{"$f":"Загальнакількістьгодиннадень","v":""}]